fUST/lending_fUST_20260421
["ID","MTS","AMOUNT","RATE_DAILY","PERIOD"]
[420934027,1776743448455,-7676.85178447,0.00013625,2]
[420934028,1776743448467,-18121.95621869,0.00013625,2]
[420934029,1776743448549,-608.45055747,0.00013625,2]
[420934030,1776743553430,500.0,0.00026238,120]
[420934031,1776743813406,1666.71,0.00026228,120]
[420934032,1776743813625,1666.71,0.00026228,120]
[420934033,1776743813856,1666.71,0.00026228,120]
[420934034,1776743814075,1666.71,0.00026228,120]
[420934035,1776743814481,1666.71,0.00026228,120]
[420934036,1776743817392,1666.71,0.00026228,120]
[420934037,1776743817649,1666.71,0.00026228,120]
[420934038,1776743817869,1666.71,0.00026228,120]
[420934039,1776743818113,1666.71,0.00026228,120]
[420934040,1776743818340,1666.71,0.00026228,120]
[420934041,1776743818589,1666.71,0.00026228,120]
[420934042,1776743818810,1666.71,0.00026228,120]
[420934043,1776743819030,1666.71,0.00026228,120]
[420934044,1776743819246,1666.71,0.00026228,120]
[420934045,1776743819617,1666.71,0.00026228,120]
[420934046,1776743819716,1666.71,0.00026228,120]
[420934047,1776743819950,1666.71,0.00026228,120]
[420934048,1776743833591,1666.71,0.00026228,120]
[420934049,1776743833815,1666.71,0.00026228,120]
[420934050,1776743834047,1666.71,0.00026228,120]
[420934051,1776743834279,1666.71,0.00026228,120]
[420934052,1776743834499,1666.71,0.00026228,120]
[420934053,1776743834714,1666.71,0.00026228,120]
[420934054,1776743834952,1666.71359811,0.00026228,120]
[420934055,1776743845270,500.0,0.00026228,120]
[420934058,1776744062372,-1451.94722867,7.6e-05,2]
[420934059,1776744065541,389.39,0.00023288,120]
[420934060,1776744066224,584.09,0.00026228,120]
[420934061,1776744233205,-5000.0,7.524e-05,10]
[420934062,1776744233226,-2721.05277133,7.6e-05,2]
[420934063,1776744233246,-527.0,7.6e-05,2]
[420934064,1776744267018,-5000.0,0.0001,2]
[420934065,1776744267040,-560.0,0.0001,2]
[420934066,1776744268288,4440.0,9.9e-05,2]
[420934067,1776744352726,-5000.0,9.801e-05,2]
[420934068,1776744352750,-437.0,9.801e-05,2]
[420934069,1776744352772,-560.0,9.9e-05,2]
[420934070,1776744375044,-2000.0,8.137e-05,2]
[420934071,1776744390609,-1000.0,8.056e-05,2]
[420934072,1776744403089,-1588.34302022,8.056e-05,2]
[420934073,1776744403114,-3000.0,8.137e-05,2]
[420934074,1776744403136,-500.0,8.219e-05,2]
[420934075,1776744403159,-788.0,8.219e-05,2]
[420934076,1776744403182,-206.41420843,9.193e-05,2]
[420934077,1776744464158,-300.0,0.0001,2]
[420934116,1776744632726,-415.5682228,9.899e-05,2]
[420934118,1776744632738,-1312.80866382,9.899e-05,2]
[420934240,1776744638952,-3271.62311338,9.899e-05,2]
[420934241,1776744638961,-559.0,9.899e-05,2]
[420934242,1776744638971,-300.0,9.999e-05,2]
[420934243,1776744638980,-300.0,9.999e-05,2]
[420934244,1776744638990,-300.0,9.999e-05,2]
[420934245,1776744638999,-1200.0,9.999e-05,2]
[420934246,1776744639009,-6497.25947541,0.0001,2]
[420934247,1776744639018,-673.60841401,0.0001,2]
[420934248,1776744639028,-301.0,0.00010999,2]
[420934249,1776744639037,-315.0,0.00010999,2]
[420934250,1776744639047,-1200.0,0.00010999,2]
[420934251,1776744639056,-243.56876594,0.00011193,2]
[420934252,1776744639065,-325.3138637,0.00012304,2]
[420934253,1776744639074,-465.29439363,0.00012436,2]
[420934254,1776744639083,-1861.17757454,0.00012436,2]
[420934255,1776744639093,-4183.46189317,0.00012436,2]
[420934256,1776744639102,-498.76588989,0.0001252,2]
[420934257,1776744639111,-1995.06355955,0.0001252,2]
[420934258,1776744639121,-4484.40411598,0.0001252,2]
[420934259,1776744639130,-792.52222743,0.00012688,2]
[420934260,1776744639139,-3166.9188208,0.00012688,2]
[420934261,1776744639148,-152.0,0.00012832,7]
[420934262,1776744639158,-152.0,0.00012832,7]
[420934263,1776744639167,-50000.0,0.00013025,2]
[420934264,1776744639175,-536.34546829,0.00013025,2]
[420934265,1776744639185,-569.38963267,0.00013025,2]
[420934266,1776744639194,-372.96133317,0.00013179,2]
[420934267,1776744639203,-1491.8453327,0.00013179,2]
[420934268,1776744639212,-3356.65199857,0.00013179,2]
[420934269,1776744639221,-5961.41394945,0.00013179,2]
[420934270,1776744639231,-280.72332346,0.00013193,2]
[420934271,1776744639240,-160.0,0.00013259,2]
[420934272,1776744639249,-198.98086585,0.00013396,2]
[420934273,1776744639258,-600.0,0.00013442,2]
[420934274,1776744639267,-160.0,0.00013457,2]
[420934275,1776744639276,-1202.75315566,0.000135,2]
[420934276,1776744639286,-3314.24488539,0.000135,2]
[420934277,1776744639295,-2729.31619823,0.000135,2]
[420934278,1776744639304,-3009.55756153,0.000135,2]
[420934279,1776744639314,-3021.78054178,0.000135,2]
[420934280,1776744639324,-3367.3228843,0.00013596,2]
[420934281,1776744639333,-153.47455894,0.00013625,2]
[420934282,1776744639343,-500.0,0.00013698,2]
[420934283,1776744639352,-500.0,0.00013698,2]
[420934285,1776744639361,-501.00848522,0.00013698,2]
[420934287,1776744639371,-1000.0,0.00013699,2]
[420934289,1776744639380,-151.0,0.00013699,2]
[420934290,1776744639390,-1000.0,0.00013699,2]
[420934291,1776744639399,-500.0,0.00013724,2]
[420934292,1776744639409,-564.52,0.00013724,2]
[420934293,1776744639419,-559.27808,0.00013853,2]
[420934294,1776744639428,-287.9851576,0.00013991,2]
[420934295,1776744639437,-151.0,0.00013992,2]
[420934296,1776744639447,-455.7012442,0.00013992,2]
[420934297,1776744639456,-536.34546823,0.00014007,2]
[420934298,1776744639466,-2210.0,0.00014171,2]
[420934299,1776744639475,-645.0,0.00014171,2]
[420934300,1776744639484,-1409.0,0.00014171,2]
[420934301,1776744639493,-150.362,0.00014176,2]
[420934302,1776744639503,-5016.74592153,0.00014209,2]
[420934303,1776744639513,-198.98086585,0.00014214,2]
[420934304,1776744639523,-445.202766,0.00014314,2]
[420934305,1776744639532,-537.6845,0.00014314,2]
[420934306,1776744639542,-162.65784057,0.00014314,2]
[420934307,1776744639551,-500.0,0.00014314,2]
[420934308,1776744639561,-500.0,0.00014314,2]
[420934309,1776744639571,-500.0,0.00014314,2]
[420934310,1776744639580,-500.0,0.00014314,2]
[420934311,1776744639590,-500.0,0.00014314,2]
[420934312,1776744639599,-500.0,0.00014314,2]
[420934313,1776744639609,-500.0,0.00014314,2]
[420934314,1776744639618,-500.0,0.00014314,2]
[420934315,1776744639628,-500.0,0.00014314,2]
[420934316,1776744639637,-500.0,0.00014314,2]
[420934317,1776744639647,-500.0,0.00014314,2]
[420934318,1776744639656,-500.0,0.00014314,2]
[420934319,1776744639666,-500.0,0.00014314,2]
[420934320,1776744639675,-500.0,0.00014314,2]
[420934321,1776744639685,-500.0,0.00014314,2]
[420934322,1776744639695,-500.0,0.00014314,2]
[420934323,1776744639704,-500.0,0.00014314,2]
[420934324,1776744639714,-500.0,0.00014314,2]
[420934325,1776744639723,-156.98131636,0.00014314,2]
[420934326,1776744639733,-2150.738,0.00014314,2]
[420934327,1776744639742,-537.6845,0.00014314,2]
[420934328,1776744639752,-557.5788265,0.00014369,2]
[420934329,1776744639761,-578.20924308,0.00014424,2]
[420934330,1776744639771,-501.32380055,0.00014433,2]
[420934331,1776744639780,-559.27808,0.00014436,2]
[420934332,1776744639790,-155.24714919,0.00014479,2]
[420934333,1776744639799,-156.74416523,0.00014525,2]
[420934334,1776744639809,-151.5,0.00014525,2]
[420934335,1776744639818,-151.5,0.00014525,2]
[420934336,1776744639828,-160.51185411,0.00014525,2]
[420934337,1776744639837,-167.96045555,0.00014525,2]
[420934338,1776744639847,-507.64606938,0.00014543,2]
[420934339,1776744639856,-500.0,0.00014667,2]
[420934340,1776744639865,-500.0,0.00014667,2]
[420934341,1776744639875,-500.84877909,0.00014667,2]
[420934342,1776744639884,-600.0,0.00014727,2]
[420934343,1776744639894,-720.0,0.00014786,2]
[420934344,1776744639903,-1621.971255,0.000148,2]
[420934345,1776744639913,-461.67526834,0.00014862,2]
[420934346,1776744639922,-2230.315306,0.00014862,2]
[420934347,1776744639932,-557.5788265,0.00014862,2]
[420934348,1776744639941,-346.86885359,0.00014883,2]
[420934349,1776744639951,-459.42780486,0.000149,2]
[420934350,1776744639961,-459.42780486,0.000149,2]
[420934351,1776744639970,-459.42780486,0.000149,2]
[420934352,1776744639980,-536.34546823,0.00014989,2]
[420934353,1776744639989,-10147.12156179,0.00015,2]
[420934354,1776744639999,-179.00901205,0.00015,2]
[420934355,1776744640008,-160.0,0.00015,7]
[420934356,1776744640017,-10282.24708857,0.00015,2]
[420934357,1776744640026,-912.24865248,0.00015014,30]
[420934358,1776744640035,-559.27808,0.00015019,2]
[420934359,1776744640044,-198.98086585,0.00015032,2]
[420934360,1776744640053,-912.24865248,0.00015068,30]
[420934361,1776744640062,-966.660107,0.00015068,2]
[420934362,1776744640072,-912.24865248,0.00015151,30]
[420934363,1776744640081,-317.87788097,0.00015193,2]
[420934364,1776744640090,-4170.27872781,0.000152,2]
[420934365,1776744640109,-297.39994182,0.000152,2]
[420934384,1776744643948,-152.0,0.00013028,7]
[420934385,1776744643958,-152.0,0.00013028,7]
[420934386,1776744643968,-5679.44289216,0.000152,2]
[420934387,1776744643977,-179.00901205,0.000152,2]
[420934388,1776744643986,-912.24865248,0.00015205,30]
[420934389,1776744643995,-1000.0,0.00015215,2]
[420934390,1776744644005,-1000.0,0.00015215,2]
[420934391,1776744644014,-151.0,0.00015268,2]
[420934392,1776744644023,-912.24865248,0.00015288,30]
[420934393,1776744644032,-10147.12156179,0.000153,2]
[420934394,1776744644041,-179.00901205,0.000153,2]
[420934395,1776744644050,-912.24865248,0.0001537,30]
[420934396,1776744644060,-449.02602927,0.0001541,2]
[420934397,1776744644069,-2312.83697232,0.0001541,2]
[420934398,1776744644078,-511.01390721,0.0001541,2]
[420934399,1776744644087,-912.24865248,0.00015425,30]
[420934400,1776744644095,-200.19904031,0.0001545,2]
[420934401,1776744644104,-10147.12156179,0.000155,2]
[420934402,1776744644113,-912.24865248,0.00015507,30]
[420934403,1776744644122,-151.0,0.00015579,2]
[420934404,1776744644131,-912.24865248,0.00015589,30]
[420934405,1776744644140,-2249.47406093,0.000156,2]
[420934407,1776744646913,-5000.0,0.00015444,2]
[420934408,1776744646923,-1000.0,0.000155,2]
[420934409,1776744646933,-7623.64875864,0.000156,2]
[420934410,1776745249282,402.64928309,0.00026229,120]
[420934430,1776745831860,-2013.05918132,0.00012324,10]
[420934433,1776745831875,-2750.0,0.00012324,10]
[420934439,1776745831920,-236.94081868,0.00012324,10]
[420934441,1776745831929,-193.01299958,0.00012639,2]
[420934443,1776745831938,-1000.0,0.00013699,2]
[420934445,1776745831947,-160.0,0.00013699,2]
[420934447,1776745831957,-1200.0,0.00013759,2]
[420934449,1776745831966,-1000.0,0.0001376,2]
[420934451,1776745831976,-300.0,0.00014524,2]
[420934452,1776745831986,-300.0,0.00014524,2]
[420934454,1776745831995,-300.0,0.00014524,2]
[420934456,1776745832005,-300.0,0.00014524,2]
[420934458,1776745832014,-1386.08793895,0.00014525,2]
[420934460,1776745832026,-227.7553395,0.00014639,2]
[420934462,1776745832036,-500.0,0.00014749,2]
[420934464,1776745832046,-844.0,0.00014749,2]
[420934466,1776745832057,-500.0,0.00014749,2]
[420934468,1776745832067,-844.0,0.00014749,2]
[420934470,1776745832077,-500.0,0.00014749,2]
[420934472,1776745832087,-500.0,0.00014749,2]
[420934474,1776745832097,-844.0,0.00014749,2]
[420934476,1776745832107,-500.0,0.00014749,2]
[420934478,1776745832116,-844.0,0.00014749,2]
[420934480,1776745832126,-500.0,0.00014749,2]
[420934482,1776745832136,-844.0,0.00014749,2]
[420934484,1776745832146,-500.0,0.00014749,2]
[420934486,1776745832155,-844.0,0.00014749,2]
[420934488,1776745832165,-500.0,0.00014749,2]
[420934490,1776745832174,-844.0,0.00014749,2]
[420934492,1776745832183,-500.0,0.00014749,2]
[420934494,1776745832192,-844.0,0.00014749,2]
[420934496,1776745832202,-844.0,0.00014749,2]
[420934498,1776745832211,-205.47433144,0.00014749,2]
[420934500,1776745832222,-844.0,0.00014749,2]
[420934502,1776745832232,-844.0,0.00014749,2]
[420934504,1776745832241,-844.0,0.00014749,2]
[420934505,1776745832250,-844.0,0.00014749,2]
[420934506,1776745832259,-844.0,0.00014749,2]
[420934507,1776745832268,-844.0,0.00014749,2]
[420934508,1776745832277,-844.0,0.00014749,2]
[420934509,1776745832287,-844.0,0.00014749,2]
[420934510,1776745832296,-844.0,0.00014749,2]
[420934511,1776745832306,-844.0,0.00014749,2]
[420934512,1776745832315,-844.0,0.00014749,2]
[420934513,1776745832324,-844.0,0.00014749,2]
[420934514,1776745832333,-844.0,0.00014749,2]
[420934515,1776745832342,-844.0,0.00014749,2]
[420934516,1776745832351,-845.38503746,0.00014749,2]
[420934517,1776745832360,-500.0,0.00014749,2]
[420934518,1776745832370,-500.0,0.00014749,2]
[420934519,1776745832380,-500.0,0.00014749,2]
[420934520,1776745832389,-500.0,0.00014749,2]
[420934521,1776745832398,-500.0,0.00014749,2]
[420934522,1776745832407,-500.0,0.00014749,2]
[420934523,1776745832416,-500.0,0.00014749,2]
[420934524,1776745832425,-500.0,0.00014749,2]
[420934525,1776745832435,-500.0,0.00014749,2]
[420934526,1776745832444,-500.0,0.00014749,2]
[420934527,1776745832454,-500.0,0.00014749,2]
[420934528,1776745832463,-213.44643406,0.00014749,2]
[420934529,1776745832472,-500.0,0.00014749,2]
[420934530,1776745832481,-35.89710033,0.00014749,2]
[420934531,1776745832493,-464.10289967,0.00014749,2]
[420934532,1776745832502,-151.5,0.00014749,2]
[420934533,1776745832512,-197.0,0.00014749,2]
[420934534,1776745832521,-151.5,0.00014749,2]
[420934535,1776745832530,-500.0,0.00014749,2]
[420934536,1776745832539,-500.0,0.00014749,2]
[420934537,1776745832548,-500.0,0.00014749,2]
[420934538,1776745832558,-4109.86396189,0.00014749,2]
[420934539,1776745832567,-333.78788816,0.00014749,2]
[420934540,1776745832576,-198.98086585,0.00014822,2]
[420934541,1776745832585,-198.98086585,0.00014823,2]
[420934542,1776745832594,-26969.92470062,0.00014823,2]
[420934557,1776745838684,-32818.26151636,0.00014823,2]
[420934566,1776745840405,-5000.0,0.00014675,2]
[420934567,1776745840415,-1647.22303878,0.00014823,2]
[420934582,1776745844705,-38276.97931851,0.00014823,2]
[420934583,1776745844716,-1290.04820015,0.00014823,2]
[420934584,1776745844760,-1625.9843161,0.00014823,2]
[420934585,1776745844771,-3449.03,0.00014823,2]
[420934591,1776745846156,-25263.26573667,0.00014823,2]
[420934592,1776745846212,-604.28667601,0.00014823,2]
[420934593,1776745846223,-1423.0,0.00014823,2]
[420934623,1776746638413,150.0,0.000135,120]
[420934624,1776746638578,150.0,0.00013905,120]
[420934625,1776746638729,150.0,0.0001431,120]
[420934631,1776746665756,2971.27,0.0002624,120]
[420934632,1776746666005,2971.27,0.0002624,120]
[420934633,1776746666242,2971.27,0.0002624,120]
[420934634,1776746666475,2971.27,0.0002624,120]
[420934635,1776746666709,2971.27,0.0002624,120]
[420934636,1776746666948,2971.27,0.0002624,120]
[420934637,1776746667195,2971.27,0.0002624,120]
[420934638,1776746667424,2971.27,0.0002624,120]
[420934639,1776746667647,2971.27,0.0002624,120]
[420934640,1776746667869,2971.27,0.0002624,120]
[420934641,1776746668094,2971.27,0.0002624,120]
[420934642,1776746668360,2971.27,0.0002624,120]
[420934643,1776746668585,2971.27,0.0002624,120]
[420934644,1776746668842,2971.27,0.0002624,120]
[420934645,1776746669082,2971.27,0.0002624,120]
[420934646,1776746669318,2971.27,0.0002624,120]
[420934647,1776746669551,2971.27,0.0002624,120]
[420934648,1776746669779,2971.27,0.0002624,120]
[420934649,1776746670007,2971.27,0.0002624,120]
[420934650,1776746670261,2971.27,0.0002624,120]
[420934651,1776746670562,2971.27,0.0002624,120]
[420934652,1776746670795,2971.27,0.0002624,120]
[420934653,1776746671100,2971.27,0.0002624,120]
[420934654,1776746671341,2971.49795532,0.0002624,120]
[420934655,1776746674028,500.0,0.0002624,120]
[420934656,1776746674269,500.0,0.0002624,120]
[420934657,1776746674503,500.0,0.0002624,120]
[420934658,1776746674735,500.0,0.0002624,120]
[420934659,1776746675077,500.0,0.0002624,120]
[420934660,1776746675197,500.0,0.0002624,120]
[420934661,1776746675420,500.0,0.0002624,120]
[420934662,1776746675645,500.0,0.0002624,120]
[420934663,1776746675866,500.0,0.0002624,120]
[420934664,1776746676117,500.0,0.0002624,120]
[420934665,1776746676349,500.0,0.0002624,120]
[420934666,1776746676581,500.0,0.0002624,120]
[420934667,1776746676847,500.0,0.0002624,120]
[420934668,1776746677074,500.0,0.0002624,120]
[420934669,1776746677301,500.0,0.0002624,120]
[420934670,1776746677526,500.0,0.0002624,120]
[420934671,1776746677573,500.0,0.0002624,120]
[420934672,1776746677766,500.0,0.0002624,120]
[420934673,1776746677812,500.0,0.0002624,120]
[420934674,1776746678002,500.0,0.0002624,120]
[420934675,1776746678054,500.0,0.0002624,120]
[420934676,1776746678229,500.0,0.0002624,120]
[420934677,1776746678275,500.0,0.0002624,120]
[420934678,1776746678483,500.0,0.0002624,120]
[420934679,1776746678528,500.0,0.0002624,120]
[420934680,1776746678713,500.0,0.0002624,120]
[420934681,1776746678763,500.0,0.0002624,120]
[420934682,1776746678943,500.0,0.0002624,120]
[420934683,1776746678988,500.0,0.0002624,120]
[420934684,1776746679197,500.0,0.0002624,120]
[420934685,1776746679242,500.0,0.0002624,120]
[420934686,1776746679425,255.89977746,0.0002624,120]
[420934687,1776746679470,500.0,0.0002624,120]
[420934689,1776746679701,500.0,0.0002624,120]
[420934690,1776746679943,500.0,0.0002624,120]
[420934691,1776746680173,500.0,0.0002624,120]
[420934692,1776746680400,500.0,0.0002624,120]
[420934693,1776746680633,500.0,0.0002624,120]
[420934694,1776746680868,287.34032409,0.0002624,120]
[420934695,1776746680957,2458.4,0.0002624,120]
[420934696,1776746681189,2458.4,0.0002624,120]
[420934697,1776746681406,2458.4,0.0002624,120]
[420934698,1776746681635,2458.4,0.0002624,120]
[420934699,1776746681868,2458.4,0.0002624,120]
[420934700,1776746682087,2458.4,0.0002624,120]
[420934701,1776746682310,2458.4,0.0002624,120]
[420934702,1776746682530,2458.4,0.0002624,120]
[420934703,1776746682748,2458.4,0.0002624,120]
[420934704,1776746682982,2458.4,0.0002624,120]
[420934705,1776746683206,2458.4,0.0002624,120]
[420934706,1776746683432,2458.4,0.0002624,120]
[420934707,1776746683675,2458.4,0.0002624,120]
[420934708,1776746683893,2458.4,0.0002624,120]
[420934709,1776746684109,2458.4,0.0002624,120]
[420934710,1776746684333,2458.4,0.0002624,120]
[420934711,1776746684492,500.0,0.0002624,120]
[420934712,1776746684552,2458.4,0.0002624,120]
[420934713,1776746684751,500.0,0.0002624,120]
[420934714,1776746684796,2458.4,0.0002624,120]
[420934715,1776746685006,500.0,0.0002624,120]
[420934716,1776746685050,2458.4,0.0002624,120]
[420934717,1776746685383,500.0,0.0002624,120]
[420934718,1776746685430,2458.4,0.0002624,120]
[420934719,1776746685515,500.0,0.0002624,120]
[420934720,1776746685563,2458.4,0.0002624,120]
[420934721,1776746685703,500.0,0.0002624,120]
[420934722,1776746685748,2458.4,0.0002624,120]
[420934723,1776746685951,500.0,0.0002624,120]
[420934724,1776746685998,2458.4,0.0002624,120]
[420934725,1776746686185,500.0,0.0002624,120]
[420934726,1776746686231,2458.49129874,0.0002624,120]
[420934727,1776746686442,500.0,0.0002624,120]
[420934728,1776746686681,500.0,0.0002624,120]
[420934729,1776746686960,630.81860695,0.0002624,120]
[420934730,1776746689050,500.0,0.0002624,120]
[420934731,1776746689314,500.0,0.0002624,120]
[420934732,1776746689547,500.0,0.0002624,120]
[420934733,1776746689770,500.0,0.0002624,120]
[420934734,1776746690009,500.0,0.0002624,120]
[420934735,1776746690239,520.20135812,0.0002624,120]
[420934736,1776746695579,543.75,0.0002624,120]
[420934737,1776746695711,543.75,0.0002624,120]
[420934738,1776746695938,543.75,0.0002624,120]
[420934739,1776746696166,543.75,0.0002624,120]
[420934740,1776746696403,543.75,0.0002624,120]
[420934741,1776746696647,543.75,0.0002624,120]
[420934742,1776746696890,543.75,0.0002624,120]
[420934743,1776746697122,543.75,0.0002624,120]
[420934744,1776746697366,543.75,0.0002624,120]
[420934745,1776746697607,543.75,0.0002624,120]
[420934746,1776746697947,543.75,0.0002624,120]
[420934747,1776746698210,543.75,0.0002624,120]
[420934748,1776746698462,543.75,0.0002624,120]
[420934749,1776746698716,543.75,0.0002624,120]
[420934750,1776746699209,543.75,0.0002624,120]
[420934751,1776746699451,543.75,0.0002624,120]
[420934752,1776746699680,543.75,0.0002624,120]
[420934753,1776746699921,543.75,0.0002624,120]
[420934754,1776746700158,543.75,0.0002624,120]
[420934755,1776746700428,543.75,0.0002624,120]
[420934756,1776746700661,543.75,0.0002624,120]
[420934757,1776746700915,543.75,0.0002624,120]
[420934758,1776746701168,543.75,0.0002624,120]
[420934759,1776746701398,543.94407831,0.0002624,120]
[420934760,1776746712073,500.0,0.0002624,120]
[420934761,1776746712302,500.0,0.0002624,120]
[420934762,1776746712526,500.0,0.0002624,120]
[420934763,1776746712756,500.0,0.0002624,120]
[420934764,1776746712979,500.0,0.0002624,120]
[420934765,1776746713230,500.0,0.0002624,120]
[420934766,1776746713470,511.5823557,0.0002624,120]
[420934767,1776746715280,500.0,0.0002624,120]
[420934768,1776746715513,500.0,0.0002624,120]
[420934769,1776746715875,500.0,0.0002624,120]
[420934770,1776746715925,500.0,0.0002624,120]
[420934771,1776746715975,500.0,0.0002624,120]
[420934772,1776746716136,500.0,0.0002624,120]
[420934773,1776746716199,233.20705586,0.0002624,120]
[420934774,1776746716371,500.0,0.0002624,120]
[420934775,1776746716610,500.0,0.0002624,120]
[420934776,1776746716827,500.0,0.0002624,120]
[420934777,1776746717051,500.0,0.0002624,120]
[420934778,1776746717298,500.0,0.0002624,120]
[420934779,1776746717544,500.0,0.0002624,120]
[420934780,1776746717807,500.0,0.0002624,120]
[420934781,1776746718085,500.0,0.0002624,120]
[420934782,1776746718305,500.0,0.0002624,120]
[420934783,1776746718526,500.0,0.0002624,120]
[420934784,1776746718755,500.0,0.0002624,120]
[420934785,1776746718979,500.0,0.0002624,120]
[420934786,1776746719326,500.0,0.0002624,120]
[420934787,1776746719549,500.0,0.0002624,120]
[420934788,1776746719773,452.77259265,0.0002624,120]
[420934789,1776746723619,911.12,0.0002624,120]
[420934790,1776746723838,911.12,0.0002624,120]
[420934791,1776746724092,911.12,0.0002624,120]
[420934792,1776746724312,911.12,0.0002624,120]
[420934793,1776746724538,911.12,0.0002624,120]
[420934794,1776746724780,911.12,0.0002624,120]
[420934795,1776746725005,911.12,0.0002624,120]
[420934796,1776746725232,911.12,0.0002624,120]
[420934797,1776746725456,911.12,0.0002624,120]
[420934798,1776746725678,911.12,0.0002624,120]
[420934799,1776746726032,911.12,0.0002624,120]
[420934800,1776746726165,911.12,0.0002624,120]
[420934801,1776746726386,911.12,0.0002624,120]
[420934802,1776746726616,911.12,0.0002624,120]
[420934803,1776746726841,911.12,0.0002624,120]
[420934804,1776746727062,911.12,0.0002624,120]
[420934805,1776746727283,911.12,0.0002624,120]
[420934806,1776746727505,911.12,0.0002624,120]
[420934807,1776746727723,911.12,0.0002624,120]
[420934808,1776746727973,911.12,0.0002624,120]
[420934809,1776746728203,911.12,0.0002624,120]
[420934810,1776746728426,911.12,0.0002624,120]
[420934811,1776746728655,911.12,0.0002624,120]
[420934812,1776746728871,911.193648,0.0002624,120]
[420934813,1776746730580,500.0,0.0002624,120]
[420934814,1776746730800,500.0,0.0002624,120]
[420934815,1776746731018,500.0,0.0002624,120]
[420934816,1776746731238,500.0,0.0002624,120]
[420934817,1776746731472,500.0,0.0002624,120]
[420934818,1776746731726,500.0,0.0002624,120]
[420934819,1776746732501,500.0,0.0002624,120]
[420934820,1776746732588,500.0,0.0002624,120]
[420934821,1776746732910,500.0,0.0002624,120]
[420934822,1776746732980,500.0,0.0002624,120]
[420934823,1776746733140,500.0,0.0002624,120]
[420934824,1776746733367,500.0,0.0002624,120]
[420934825,1776746733413,500.0,0.0002624,120]
[420934826,1776746733598,500.0,0.0002624,120]
[420934827,1776746733643,500.0,0.0002624,120]
[420934828,1776746733824,500.0,0.0002624,120]
[420934829,1776746733868,500.0,0.0002624,120]
[420934830,1776746734061,500.0,0.0002624,120]
[420934831,1776746734107,500.0,0.0002624,120]
[420934832,1776746734308,332.34462513,0.0002624,120]
[420934833,1776746734352,500.0,0.0002624,120]
[420934834,1776746734558,500.0,0.0002624,120]
[420934835,1776746734800,500.0,0.0002624,120]
[420934836,1776746735044,500.0,0.0002624,120]
[420934837,1776746735142,500.0,0.0002624,120]
[420934838,1776746735301,500.0,0.0002624,120]
[420934839,1776746735368,500.0,0.0002624,120]
[420934840,1776746735562,486.19570237,0.0002624,120]
[420934841,1776746735611,500.0,0.0002624,120]
[420934842,1776746735843,640.7681334,0.0002624,120]
[420934843,1776746740581,500.0,0.0002624,120]
[420934844,1776746740847,500.0,0.0002624,120]